[Event "SuperChess Cup Blitz 2019"]
[Site "Bucharest"]
[Date "2019.11.09"]
[Round "4.1"]
[White "Gavrilescu, David"]
[Black "Cosma, Elena-Luminita"]
[Result "0-1"]
[ECO "C10"]
[WhiteElo "2274"]
[BlackElo "2199"]
[Annotator "RC"]
[PlyCount "84"]
[EventDate "2019.11.06"]
[EventType "tourn"]
[EventCountry "ROU"]
[SourceTitle "playchess.com"]
[Source "ChessBase"]
[SourceQuality "1"]
[TimeMode "Bronstein"]
[TimeControl "300+3"]

1. e4 {[%emt 0:00:00]} e6 {[%emt 0:00:00]} 2. d4 {[%emt 0:00:00]} d5 {[%emt 0:00:00]} 3. Nc3 {[%emt 0:00:00]} h6 {[%emt 0:00:00]} 4. Nf3 {[%emt 0:00:02]} Nf6 {[%emt 0:00:00]} 5. e5 {[%emt 0:00:02]} Ne4 {[%emt 0:00:00]} 6. Bd3 {[%emt 0:00:18]} Bb4 {[%emt 0:00:00]} 7. Bd2 {[%emt 0:00:04]} Bxc3 {[%emt 0:00:03]} 8. bxc3 {[%emt 0:00:03]} Nxd2 {[%emt 0:00:03]} 9. Qxd2 {[%emt 0:00:03]} c5 {[%emt 0:00:03]} 10. h4 {[%emt 0:00:07]} Qa5 {[%emt 0:00:34]} 11. Rb1 {[%emt 0:00:43]} cxd4 {[%emt 0:00:03]} 12. cxd4 {[%emt 0:00:05]} Qxd2+ {[%emt 0:00:03]} 13. Kxd2 {[%emt 0:00:03]} Nc6 {[%emt 0:00:04]} 14. h5 {[%emt 0:00:08]} Na5 {[%emt 0:00:15]} 15. g4 {[%emt 0:00:14]} Bd7 {[%emt 0:00:12]} 16. Ne1 {[%emt 0:00:54]} b6 {[%emt 0:00:37]} 17. Ng2 {[%emt 0:00:05]} Ke7 {[%emt 0:00:43]} 18. Ne3 {[%emt 0:00:06]} Rac8 {[%emt 0:00:03]} 19. f4 {[%emt 0:00:03]} Rc7 {[%emt 0:00:23]} 20. Rbf1 {[%emt 0:00:06]} Rhc8 {[%emt 0:01:07]} 21. f5 {[%emt 0:00:43]} Nc6 {[%emt 0:00:04]} 22. Ba6 {[%emt 0:00:03]} Nxd4 {[%emt 0:00:05]} 23. Bxc8 {[%emt 0:00:03]} Rxc8 {[%emt 0:00:05]} 24. f6+ {[%emt 0:00:04]} gxf6 {[%emt 0:00:19]} 25. exf6+ {[%emt 0:00:14]} Kd6 {[%emt 0:00:03]} 26. g5 {[%emt 0:00:05]} hxg5 {[%emt 0:00:03]} 27. h6 {[%emt 0:00:03]} Rh8 {[%emt 0:00:05]} 28. c3 {[%emt 0:00:06]} Nf5 {[%emt 0:00:06]} 29. Nxf5+ {[%emt 0:00:33]} exf5 {[%emt 0:00:03]} 30. h7 {[%emt 0:00:10]} Ke5 {[%emt 0:00:10]} 31. Rh6 {[%emt 0:00:13]} f4 {[%emt 0:00:03]} 32. Rg1 {[%emt 0:00:23]} g4 {[%emt 0:00:11]} 33. Rf1 {[%emt 0:00:18]} Kf5 {[%emt 0:00:20]} 34. Rh5+ {[%emt 0:00:04]} Kg6 {[%emt 0:00:05]} 35. Rfh1 {[%emt 0:00:08]} Kxf6 {[%emt 0:00:03]} 36. Rxd5 {[%emt 0:00:05]} Be6 {[%emt 0:00:05]} 37. Rdh5 {[%emt 0:00:06]} Bf5 {[%emt 0:00:07]} 38. Rf1 {[%emt 0:00:04]} Kg6 {[%emt 0:00:07]} 39. Rh2 {[%emt 0:00:08]} Kg5 {[%emt 0:00:03]} 40. Rfh1 {[%emt 0:00:03]} Bg6 {[%emt 0:00:03]} 41. Ke2 {[%emt 0:00:03]} f5 {[%emt 0:00:06]} 42. Rg1 f3+ 0-1

[Event "SuperChess Cup Blitz 2019"]
[Site "Bucharest"]
[Date "2019.11.09"]
[Round "5.4"]
[White "Istratescu, Andrei"]
[Black "Deac, Bogdan-Daniel"]
[Result "1-0"]
[ECO "C77"]
[WhiteElo "2604"]
[BlackElo "2544"]
[Annotator "RC"]
[PlyCount "131"]
[EventDate "2019.11.06"]
[EventType "tourn"]
[EventCountry "ROU"]
[SourceTitle "playchess.com"]
[Source "ChessBase"]
[SourceQuality "1"]
[TimeMode "Bronstein"]
[TimeControl "300+3"]

1. e4 {[%emt 0:00:00]} e5 {[%emt 0:00:00]} 2. Nf3 {[%emt 0:00:03]} Nc6 {[%emt 0:00:00]} 3. Bb5 {[%emt 0:00:03]} a6 {[%emt 0:00:00]} 4. Ba4 {[%emt 0:00:04]} Nf6 {[%emt 0:00:00]} 5. d3 {[%emt 0:00:03]} Bc5 {[%emt 0:00:00]} 6. O-O {[%emt 0:00:08]} d6 {[%emt 0:00:14]} 7. Bxc6+ {[%emt 0:00:30]} bxc6 {[%emt 0:00:03]} 8. Be3 {[%emt 0:00:03]} Bb6 {[%emt 0:01:09]} 9. c4 {[%emt 0:00:21]} O-O {[%emt 0:00:28]} 10. c5 {[%emt 0:01:08]} Bxc5 {[%emt 0:00:15]} 11. Bxc5 {[%emt 0:00:03]} dxc5 {[%emt 0:00:03]} 12. Qc2 {[%emt 0:00:03]} Qd6 {[%emt 0:01:02]} 13. Qc3 {[%emt 0:00:08]} Nh5 {[%emt 0:00:47]} 14. g3 {[%emt 0:00:30]} Bh3 {[%emt 0:00:07]} 15. Re1 {[%emt 0:00:21]} Nf4 {[%emt 0:00:18]} 16. Nxe5 {[%emt 0:00:15]} Ne6 {[%emt 0:00:12]} 17. Nd2 {[%emt 0:00:17]} Nd4 {[%emt 0:00:24]} 18. Nef3 {[%emt 0:00:12]} Rfd8 {[%emt 0:00:23]} 19. Nxd4 {[%emt 0:00:35]} Qxd4 {[%emt 0:00:03]} 20. Re3 {[%emt 0:00:19]} Rab8 {[%emt 0:00:08]} 21. Nb3 {[%emt 0:00:21]} Qxc3 {[%emt 0:00:03]} 22. bxc3 {[%emt 0:00:03]} c4 {[%emt 0:00:03]} 23. dxc4 {[%emt 0:00:03]} Be6 {[%emt 0:00:03]} 24. Nd4 {[%emt 0:00:07]} Bd7 {[%emt 0:00:03]} 25. c5 {[%emt 0:00:03]} Rb2 {[%emt 0:00:03]} 26. Re2 {[%emt 0:00:09]} Rxe2 {[%emt 0:00:03]} 27. Nxe2 {[%emt 0:00:03]} Rb8 {[%emt 0:00:03]} 28. Rd1 {[%emt 0:00:03]} Be6 {[%emt 0:00:03]} 29. a4 {[%emt 0:00:04]} Kf8 {[%emt 0:00:03]} 30. Nd4 {[%emt 0:00:03]} Bd7 {[%emt 0:00:03]} 31. Nc2 {[%emt 0:00:06]} Ke7 {[%emt 0:00:03]} 32. a5 {[%emt 0:00:07]} Rb5 {[%emt 0:00:03]} 33. Ra1 {[%emt 0:00:03]} Rxc5 {[%emt 0:00:03]} 34. Nb4 {[%emt 0:00:03]} Bc8 {[%emt 0:00:03]} 35. Ra3 {[%emt 0:00:03]} Rc4 {[%emt 0:00:03]} 36. f3 {[%emt 0:00:03]} Rc5 {[%emt 0:00:03]} 37. Kf2 {[%emt 0:00:03]} h5 {[%emt 0:00:03]} 38. Ke3 {[%emt 0:00:03]} Kd7 {[%emt 0:00:03]} 39. f4 {[%emt 0:00:03]} Rb5 {[%emt 0:00:03]} 40. Nd3 {[%emt 0:00:03]} Ke7 {[%emt 0:00:03]} 41. c4 {[%emt 0:00:03]} Rb1 {[%emt 0:00:03]} 42. Ra2 {[%emt 0:00:03]} h4 {[%emt 0:00:04]} 43. gxh4 {[%emt 0:00:03]} g6 {[%emt 0:00:03]} 44. Rb2 {[%emt 0:00:03]} Ra1 {[%emt 0:00:03]} 45. Rb8 {[%emt 0:00:03]} Be6 {[%emt 0:00:03]} 46. Ne5 c5 {[%emt 0:00:03]} 47. h5 {[%emt 0:00:03]} Ra3+ {[%emt 0:00:03]} 48. Kf2 {[%emt 0:00:03]} Ra2+ {[%emt 0:00:04]} 49. Kg3 {[%emt 0:00:03]} Ra3+ {[%emt 0:00:03]} 50. Kf2 {[%emt 0:00:03]} Ra2+ {[%emt 0:00:03]} 51. Ke3 {[%emt 0:00:03]} gxh5 52. f5 Bd7 {[%emt 0:00:03]} 53. Rb7 {[%emt 0:00:03]} f6 {[%emt 0:00:03]} 54. Ng6+ {[%emt 0:00:04]} Kd6 {[%emt 0:00:03]} 55. Rb8 {[%emt 0:00:03]} Ra3+ {[%emt 0:00:03]} 56. Kf4 {[%emt 0:00:03]} c6 {[%emt 0:00:03]} 57. Rf8 {[%emt 0:00:03]} Ra2 {[%emt 0:00:03]} 58. Rxf6+ {[%emt 0:00:03]} Kc7 {[%emt 0:00:03]} 59. Ne5 {[%emt 0:00:03]} Be8 {[%emt 0:00:03]} 60. Re6 {[%emt 0:00:03]} Kd8 {[%emt 0:00:03]} 61. Nxc6+ {[%emt 0:00:03]} Kd7 {[%emt 0:00:03]} 62. Ne5+ {[%emt 0:00:03]} Kd8 {[%emt 0:00:03]} 63. Rxa6 {[%emt 0:00:03]} Rxh2 {[%emt 0:00:03]} 64. f6 {[%emt 0:00:03]} Rf2+ {[%emt 0:00:03]} 65. Ke3 {[%emt 0:00:03]} Rf1 {[%emt 0:00:03]} 66. Ra8+ {[%emt 0:00:03]} 1-0

[Event "SuperChess Cup Blitz 2019"]
[Site "Bucharest"]
[Date "2019.11.10"]
[Round "10.1"]
[White "Gavrilescu, David"]
[Black "Peptan, Corina-Isabela"]
[Result "1-0"]
[ECO "B41"]
[WhiteElo "2274"]
[BlackElo "2334"]
[Annotator "ChessBase"]
[PlyCount "97"]
[EventDate "2019.11.06"]
[EventType "tourn"]
[EventCountry "ROU"]
[SourceTitle "playchess.com"]
[Source "ChessBase"]
[SourceQuality "1"]
[TimeMode "Bronstein"]
[TimeControl "300+3"]

1. e4 {[%emt 0:00:00]} c5 {[%emt 0:00:00]} 2. Nf3 {[%emt 0:00:00]} e6 {[%emt 0:00:00]} 3. d4 {[%emt 0:00:00]} cxd4 {[%emt 0:00:00]} 4. Nxd4 {[%emt 0:00:00]} a6 {[%emt 0:00:00]} 5. c4 {[%emt 0:00:00]} Nf6 {[%emt 0:00:00]} 6. Nc3 {[%emt 0:00:00]} d6 {[%emt 0:00:00]} 7. Be3 {[%emt 0:00:00]} b6 {[%emt 0:00:00]} 8. Be2 {[%emt 0:00:01]} Bb7 {[%emt 0:00:00]} 9. f3 {[%emt 0:00:02]} Be7 {[%emt 0:00:00]} 10. O-O {[%emt 0:00:02]} O-O {[%emt 0:00:09]} 11. Qd2 {[%emt 0:00:02]} Nc6 {[%emt 0:00:21]} 12. Rfc1 {[%emt 0:00:14]} Rc8 {[%emt 0:00:14]} 13. Qe1 {[%emt 0:00:29]} Ne5 {[%emt 0:00:46]} 14. Na4 {[%emt 0:00:03]} Nfd7 {[%emt 0:00:17]} 15. b4 {[%emt 0:01:12]} Bf6 {[%emt 0:00:15]} 16. Rab1 {[%emt 0:00:09]} Qc7 {[%emt 0:00:21]} 17. Qf2 {[%emt 0:00:03]} Qb8 {[%emt 0:00:05]} 18. Nb3 {[%emt 0:00:40]} Nxc4 {[%emt 0:00:05]} 19. Bxc4 {[%emt 0:00:08]} b5 {[%emt 0:00:03]} 20. Na5 {[%emt 0:00:14]} bxc4 {[%emt 0:00:09]} 21. Nxc4 {[%emt 0:00:10]} d5 {[%emt 0:00:11]} 22. Ba7 {[%emt 0:00:06]} Qf4 {[%emt 0:00:39]} 23. g3 {[%emt 0:00:03]} Qg5 {[%emt 0:00:03]} 24. Be3 {[%emt 0:00:03]} Qg6 {[%emt 0:00:03]} 25. Nd6 {[%emt 0:00:18]} Rxc1+ {[%emt 0:00:03]} 26. Rxc1 {[%emt 0:00:03]} Ba8 {[%emt 0:00:03]} 27. Nc5 {[%emt 0:00:12]} Ne5 {[%emt 0:00:16]} 28. Rd1 {[%emt 0:00:10]} dxe4 {[%emt 0:00:03]} 29. Ncxe4 {[%emt 0:00:03]} Bxe4 {[%emt 0:00:13]} 30. Nxe4 {[%emt 0:00:03]} Ng4 {[%emt 0:00:03]} 31. Nxf6+ {[%emt 0:00:05]} Nxf6 {[%emt 0:00:03]} 32. Bc5 {[%emt 0:00:05]} Re8 {[%emt 0:00:05]} 33. Qe2 {[%emt 0:00:03]} Qf5 {[%emt 0:00:05]} 34. Kg2 {[%emt 0:00:04]} h5 {[%emt 0:00:04]} 35. Rd4 {[%emt 0:00:04]} a5 {[%emt 0:00:05]} 36. a3 {[%emt 0:00:03]} axb4 {[%emt 0:00:03]} 37. axb4 {[%emt 0:00:03]} Nd5 {[%emt 0:00:06]} 38. Qe4 {[%emt 0:00:10]} Ra8 {[%emt 0:00:52]} 39. Qxf5 {[%emt 0:00:03]} Ne3+ {[%emt 0:00:03]} 40. Kf2 {[%emt 0:00:03]} Nxf5 {[%emt 0:00:03]} 41. Rd2 {[%emt 0:00:03]} Rb8 {[%emt 0:00:05]} 42. Rb2 {[%emt 0:00:03]} f6 {[%emt 0:00:04]} 43. b5 {[%emt 0:00:03]} Kf7 {[%emt 0:00:03]} 44. b6 {[%emt 0:00:04]} Ke8 {[%emt 0:00:14]} 45. b7 {[%emt 0:00:04]} Ne7 {[%emt 0:00:03]} 46. Ba7 {[%emt 0:00:03]} Nc6 {[%emt 0:00:03]} 47. Bxb8 {[%emt 0:00:03]} Nxb8 {[%emt 0:00:03]} 48. Rc2 {[%emt 0:00:03]} Kd7 {[%emt 0:00:03]} 49. Rc8 {[%emt 0:00:03]} 1-0

[Event "SuperChess Cup Blitz 2019"]
[Site "Bucharest"]
[Date "2019.11.10"]
[Round "10.2"]
[White "Deac, Bogdan-Daniel"]
[Black "Parligras, Mircea-Emilian"]
[Result "1/2-1/2"]
[ECO "C67"]
[WhiteElo "2544"]
[BlackElo "2458"]
[Annotator "ChessBase"]
[PlyCount "50"]
[EventDate "2019.11.06"]
[EventType "tourn"]
[EventCountry "ROU"]
[SourceTitle "playchess.com"]
[Source "ChessBase"]
[SourceQuality "1"]
[TimeMode "Bronstein"]
[TimeControl "300+3"]

1. e4 {[%emt 0:00:00]} e5 {[%emt 0:00:00]} 2. Nf3 {[%emt 0:00:00]} Nc6 {[%emt 0:00:00]} 3. Bb5 {[%emt 0:00:00]} Nf6 {[%emt 0:00:00]} 4. O-O {[%emt 0:00:00]} Nxe4 {[%emt 0:00:00]} 5. Re1 {[%emt 0:00:00]} Nd6 {[%emt 0:00:00]} 6. Nxe5 {[%emt 0:00:00]} Be7 {[%emt 0:00:00]} 7. Bf1 {[%emt 0:00:00]} Nxe5 {[%emt 0:00:00]} 8. Rxe5 {[%emt 0:00:00]} O-O {[%emt 0:00:00]} 9. d4 {[%emt 0:00:00]} Ne8 {[%emt 0:00:00]} 10. d5 {[%emt 0:00:00]} Bc5 {[%emt 0:00:00]} 11. Re1 {[%emt 0:00:00]} d6 {[%emt 0:00:00]} 12. Nc3 {[%emt 0:00:00]} Bf5 {[%emt 0:00:03]} 13. h3 {[%emt 0:00:17]} Qf6 {[%emt 0:00:45]} 14. Be3 {[%emt 0:01:38]} Qg6 {[%emt 0:00:04]} 15. Bd3 {[%emt 0:00:41]} h6 {[%emt 0:00:12]} 16. Bxc5 {[%emt 0:02:22]} dxc5 {[%emt 0:00:12]} 17. Bxf5 {[%emt 0:00:03]} Qxf5 {[%emt 0:00:03]} 18. Ne4 {[%emt 0:00:03]} Nf6 {[%emt 0:00:17]} 19. Nxf6+ {[%emt 0:00:05]} Qxf6 {[%emt 0:00:03]} 20. c3 {[%emt 0:00:03]} Rad8 {[%emt 0:00:32]} 21. Qb3 {[%emt 0:00:03]} b6 {[%emt 0:00:08]} 22. Re3 {[%emt 0:00:03]} Rfe8 {[%emt 0:00:21]} 23. Rae1 {[%emt 0:00:03]} Rxe3 {[%emt 0:00:03]} 24. Rxe3 {[%emt 0:00:03]} a5 {[%emt 0:00:18]} 25. c4 {[%emt 0:00:03]} g6 {[%emt 0:00:39]} 1/2-1/2

[Event "SuperChess Cup Blitz 2019"]
[Site "Bucharest"]
[Date "2019.11.10"]
[Round "10.3"]
[White "Georgescu, Tiberiu-Marian"]
[Black "Lupulescu, Constantin"]
[Result "0-1"]
[ECO "D35"]
[WhiteElo "2373"]
[BlackElo "2525"]
[Annotator "ChessBase"]
[PlyCount "112"]
[EventDate "2019.11.06"]
[EventType "tourn"]
[EventCountry "ROU"]
[SourceTitle "playchess.com"]
[Source "ChessBase"]
[SourceQuality "1"]
[TimeMode "Bronstein"]
[TimeControl "300+3"]

1. c4 {[%emt 0:00:00]} e6 {[%emt 0:00:00]} 2. Nc3 {[%emt 0:00:00]} d5 {[%emt 0:00:00]} 3. d4 {[%emt 0:00:00]} Nf6 {[%emt 0:00:00]} 4. cxd5 {[%emt 0:00:00]} exd5 {[%emt 0:00:00]} 5. Bg5 {[%emt 0:00:00]} Be7 {[%emt 0:00:00]} 6. e3 {[%emt 0:00:00]} c6 {[%emt 0:00:00]} 7. Bd3 {[%emt 0:00:00]} Nbd7 {[%emt 0:00:00]} 8. Qc2 {[%emt 0:00:00]} Nb6 {[%emt 0:00:35]} 9. O-O-O {[%emt 0:00:24]} Nh5 {[%emt 0:00:15]} 10. Bxe7 {[%emt 0:00:03]} Qxe7 {[%emt 0:00:03]} 11. Kb1 {[%emt 0:00:24]} g6 {[%emt 0:00:21]} 12. h3 {[%emt 0:00:03]} Ng7 {[%emt 0:00:07]} 13. g4 {[%emt 0:00:10]} Be6 {[%emt 0:00:16]} 14. Nge2 {[%emt 0:00:03]} O-O-O {[%emt 0:00:20]} 15. Rc1 {[%emt 0:00:03]} Kb8 {[%emt 0:00:03]} 16. Na4 {[%emt 0:00:07]} Nxa4 {[%emt 0:00:11]} 17. Qxa4 {[%emt 0:00:03]} h5 {[%emt 0:00:16]} 18. gxh5 {[%emt 0:01:17]} Rxh5 {[%emt 0:00:05]} 19. Nf4 {[%emt 0:00:06]} Bf5 {[%emt 0:00:24]} 20. Rc3 {[%emt 0:00:32]} Bxd3+ {[%emt 0:00:28]} 21. Nxd3 {[%emt 0:00:09]} Ne6 {[%emt 0:00:41]} 22. Ra3 {[%emt 0:00:13]} a6 {[%emt 0:00:03]} 23. Rb3 {[%emt 0:00:07]} Ka7 {[%emt 0:00:06]} 24. Rc1 {[%emt 0:00:03]} Rc8 {[%emt 0:00:09]} 25. Qa5 {[%emt 0:00:20]} Qc7 {[%emt 0:00:03]} 26. Qb4 {[%emt 0:00:03]} Rxh3 {[%emt 0:00:05]} 27. a4 {[%emt 0:00:09]} Rh2 {[%emt 0:00:05]} 28. a5 {[%emt 0:00:18]} f6 {[%emt 0:00:04]} 29. Rc2 {[%emt 0:00:10]} Rh1+ {[%emt 0:00:03]} 30. Ka2 {[%emt 0:00:03]} g5 {[%emt 0:00:05]} 31. Nc5 {[%emt 0:00:08]} Nxc5 {[%emt 0:00:03]} 32. Qxc5+ {[%emt 0:00:03]} Ka8 {[%emt 0:00:03]} 33. Rb6 {[%emt 0:00:04]} Rhh8 {[%emt 0:00:08]} 34. Rc3 {[%emt 0:00:05]} Rh7 {[%emt 0:00:12]} 35. Rcb3 {[%emt 0:00:09]} Qd8 {[%emt 0:00:03]} 36. Qc2 {[%emt 0:00:04]} Rg7 {[%emt 0:00:05]} 37. Qf5 {[%emt 0:00:04]} Ka7 {[%emt 0:00:05]} 38. Qe6 {[%emt 0:00:07]} Rcc7 {[%emt 0:00:04]} 39. Qf5 {[%emt 0:00:03]} Qd6 {[%emt 0:00:08]} 40. Qh3 {[%emt 0:00:22]} Rg8 {[%emt 0:00:03]} 41. Qh6 {[%emt 0:00:07]} Qe7 {[%emt 0:00:03]} 42. Qh2 {[%emt 0:00:04]} f5 {[%emt 0:00:04]} 43. Qh6 {[%emt 0:00:03]} Rf8 {[%emt 0:00:07]} 44. f3 {[%emt 0:00:14]} g4 {[%emt 0:00:05]} 45. Qf4 {[%emt 0:00:07]} Rg8 {[%emt 0:00:09]} 46. fxg4 {[%emt 0:00:03]} fxg4 {[%emt 0:00:03]} 47. Qf1 {[%emt 0:00:04]} g3 {[%emt 0:00:11]} 48. Rxa6+ {[%emt 0:00:08]} bxa6 {[%emt 0:00:03]} 49. Rb6 {[%emt 0:00:03]} Ka8 {[%emt 0:00:03]} 50. Qc1 {[%emt 0:00:05]} g2 {[%emt 0:00:08]} 51. Rxa6+ {[%emt 0:00:03]} Kb8 {[%emt 0:00:03]} 52. Rb6+ {[%emt 0:00:03]} Kc8 {[%emt 0:00:11]} 53. Qg1 {[%emt 0:00:03]} Qd6 {[%emt 0:00:04]} 54. a6 {[%emt 0:00:03]} Ra7 {[%emt 0:00:03]} 55. Qc1 {[%emt 0:00:03]} Kd7 {[%emt 0:00:09]} 56. Qg1 {[%emt 0:00:04]} Qc7 {[%emt 0:00:03]} 0-1

[Event "SuperChess Cup Blitz 2019"]
[Site "Bucharest"]
[Date "2019.11.10"]
[Round "10.4"]
[White "Cosma, Elena-Luminita"]
[Black "Miron, Lucian-Costin"]
[Result "0-1"]
[ECO "D30"]
[WhiteElo "2199"]
[BlackElo "2432"]
[Annotator "ChessBase"]
[PlyCount "152"]
[EventDate "2019.11.06"]
[EventType "tourn"]
[EventCountry "ROU"]
[SourceTitle "playchess.com"]
[Source "ChessBase"]
[SourceQuality "1"]
[TimeMode "Bronstein"]
[TimeControl "300+3"]

1. d4 {[%emt 0:00:00]} d5 {[%emt 0:00:00]} 2. c4 {[%emt 0:00:00]} e6 {[%emt 0:00:00]} 3. Nf3 {[%emt 0:00:00]} c6 {[%emt 0:00:00]} 4. Qc2 {[%emt 0:00:00]} Nf6 {[%emt 0:00:00]} 5. g3 {[%emt 0:00:00]} dxc4 {[%emt 0:00:06]} 6. Qxc4 {[%emt 0:00:00]} b5 {[%emt 0:00:03]} 7. Qb3 {[%emt 0:00:28]} Bb7 {[%emt 0:00:09]} 8. Bg2 {[%emt 0:00:04]} Nbd7 {[%emt 0:00:03]} 9. O-O {[%emt 0:00:08]} a6 {[%emt 0:00:05]} 10. a4 {[%emt 0:00:03]} c5 {[%emt 0:00:37]} 11. axb5 {[%emt 0:00:18]} Bd5 {[%emt 0:00:03]} 12. Qc2 {[%emt 0:00:25]} axb5 {[%emt 0:00:09]} 13. Rxa8 {[%emt 0:00:03]} Qxa8 {[%emt 0:00:03]} 14. Nc3 {[%emt 0:00:03]} Bc6 {[%emt 0:00:03]} 15. dxc5 {[%emt 0:01:08]} Bxc5 {[%emt 0:00:07]} 16. Nh4 {[%emt 0:00:53]} Bxg2 {[%emt 0:00:19]} 17. Nxg2 {[%emt 0:00:03]} b4 {[%emt 0:00:03]} 18. Nb1 {[%emt 0:00:16]} O-O {[%emt 0:00:06]} 19. Be3 {[%emt 0:00:03]} Be7 {[%emt 0:00:35]} 20. Nd2 {[%emt 0:00:03]} Rc8 {[%emt 0:00:04]} 21. Qb3 {[%emt 0:00:03]} h6 {[%emt 0:00:31]} 22. Nc4 {[%emt 0:00:08]} Nd5 {[%emt 0:00:14]} 23. Rc1 {[%emt 0:00:10]} Qa6 {[%emt 0:00:13]} 24. Qd3 {[%emt 0:00:21]} Bf6 {[%emt 0:00:22]} 25. h4 {[%emt 0:00:09]} Nxe3 {[%emt 0:00:28]} 26. Ngxe3 {[%emt 0:00:03]} Bxb2 {[%emt 0:00:03]} 27. Rb1 {[%emt 0:00:03]} Nc5 {[%emt 0:00:03]} 28. Qd6 {[%emt 0:00:46]} Bc3 {[%emt 0:00:08]} 29. Qxa6 {[%emt 0:00:08]} Nxa6 {[%emt 0:00:03]} 30. Kg2 {[%emt 0:00:09]} Nc5 {[%emt 0:00:07]} 31. Na5 {[%emt 0:00:05]} Ne4 {[%emt 0:00:12]} 32. Nb3 {[%emt 0:00:03]} Rd8 {[%emt 0:00:03]} 33. Nc4 {[%emt 0:00:03]} Rc8 {[%emt 0:00:05]} 34. Ne3 {[%emt 0:00:04]} h5 {[%emt 0:00:04]} 35. Kf3 {[%emt 0:00:04]} Nd6 {[%emt 0:00:03]} 36. Nd1 {[%emt 0:00:03]} Nb5 {[%emt 0:00:03]} 37. e3 {[%emt 0:00:03]} Bf6 {[%emt 0:00:09]} 38. Ke2 {[%emt 0:00:03]} g6 {[%emt 0:00:23]} 39. Rc1 {[%emt 0:00:03]} Ra8 {[%emt 0:00:26]} 40. Rc5 {[%emt 0:00:03]} Ra2+ {[%emt 0:00:06]} 41. Kd3 {[%emt 0:00:06]} Nc3 {[%emt 0:00:03]} 42. Nxc3 {[%emt 0:00:03]} bxc3 {[%emt 0:00:03]} 43. f4 {[%emt 0:00:03]} Rg2 {[%emt 0:00:06]} 44. Nd4 {[%emt 0:00:03]} Rxg3 {[%emt 0:00:07]} 45. Rxc3 {[%emt 0:00:03]} Bxd4 {[%emt 0:00:05]} 46. Kxd4 {[%emt 0:00:03]} Rh3 {[%emt 0:00:03]} 47. Ke5 {[%emt 0:00:03]} Kg7 {[%emt 0:00:03]} 48. Rd3 {[%emt 0:00:03]} Rxh4 {[%emt 0:00:03]} 49. e4 Rh1 {[%emt 0:00:03]} 50. Rd7 {[%emt 0:00:03]} Rf1 {[%emt 0:00:03]} 51. Ra7 {[%emt 0:00:03]} h4 {[%emt 0:00:04]} 52. Ra3 {[%emt 0:00:03]} Rh1 {[%emt 0:00:03]} 53. f5 {[%emt 0:00:03]} exf5 {[%emt 0:00:03]} 54. exf5 {[%emt 0:00:03]} Re1+ {[%emt 0:00:03]} 55. Kf4 {[%emt 0:00:03]} Rf1+ {[%emt 0:00:03]} 56. Kg4 {[%emt 0:00:03]} Rxf5 {[%emt 0:00:03]} 57. Kxh4 {[%emt 0:00:03]} Rb5 {[%emt 0:00:03]} 58. Ra4 {[%emt 0:00:03]} Kh6 {[%emt 0:00:03]} 59. Kg4 {[%emt 0:00:03]} Rc5 {[%emt 0:00:03]} 60. Rb4 {[%emt 0:00:03]} f6 {[%emt 0:00:03]} 61. Ra4 {[%emt 0:00:03]} g5 {[%emt 0:00:03]} 62. Ra6 {[%emt 0:00:03]} Kg6 {[%emt 0:00:03]} 63. Rb6 {[%emt 0:00:03]} Rc4+ {[%emt 0:00:03]} 64. Kg3 {[%emt 0:00:03]} Rd4 {[%emt 0:00:03]} 65. Ra6 {[%emt 0:00:03]} Kf5 {[%emt 0:00:03]} 66. Ra5+ {[%emt 0:00:03]} Ke6 {[%emt 0:00:03]} 67. Ra6+ {[%emt 0:00:03]} Ke5 {[%emt 0:00:03]} 68. Ra5+ {[%emt 0:00:03]} Rd5 {[%emt 0:00:03]} 69. Ra6 {[%emt 0:00:03]} f5 {[%emt 0:00:03]} 70. Rg6 {[%emt 0:00:03]} Rd3+ {[%emt 0:00:03]} 71. Kf2 {[%emt 0:00:03]} Kf4 {[%emt 0:00:03]} 72. Rg8 {[%emt 0:00:03]} Rd2+ {[%emt 0:00:03]} 73. Ke1 {[%emt 0:00:03]} Ra2 {[%emt 0:00:03]} 74. Rg7 {[%emt 0:00:03]} g4 {[%emt 0:00:03]} 75. Kf1 {[%emt 0:00:03]} Kf3 {[%emt 0:00:03]} 76. Ke1 {[%emt 0:00:03]} g3 {[%emt 0:00:03]} 0-1

[Event "SuperChess Cup Blitz 2019"]
[Site "Bucharest"]
[Date "2019.11.10"]
[Round "11.1"]
[White "Istratescu, Andrei"]
[Black "Gavrilescu, David"]
[Result "1-0"]
[ECO "C11"]
[WhiteElo "2604"]
[BlackElo "2274"]
[Annotator "ChessBase"]
[PlyCount "99"]
[EventDate "2019.11.06"]
[EventType "tourn"]
[EventCountry "ROU"]
[SourceTitle "playchess.com"]
[Source "ChessBase"]
[SourceQuality "1"]
[TimeMode "Bronstein"]
[TimeControl "300+3"]

1. e4 {[%emt 0:00:00]} e6 {[%emt 0:00:00]} 2. d4 {[%emt 0:00:00]} d5 {[%emt 0:00:00]} 3. Nc3 {[%emt 0:00:00]} Nf6 {[%emt 0:00:00]} 4. Bg5 {[%emt 0:00:00]} dxe4 {[%emt 0:00:00]} 5. Nxe4 {[%emt 0:00:00]} Nbd7 {[%emt 0:00:00]} 6. Nf3 {[%emt 0:00:00]} h6 {[%emt 0:00:00]} 7. Nxf6+ {[%emt 0:00:00]} Nxf6 {[%emt 0:00:00]} 8. Bh4 {[%emt 0:00:16]} c5 {[%emt 0:00:00]} 9. Bb5+ {[%emt 0:00:20]} Bd7 {[%emt 0:00:00]} 10. Bxd7+ {[%emt 0:00:06]} Qxd7 {[%emt 0:00:00]} 11. Bxf6 {[%emt 0:00:03]} gxf6 {[%emt 0:00:00]} 12. c3 {[%emt 0:00:03]} cxd4 {[%emt 0:00:21]} 13. Nxd4 {[%emt 0:00:03]} Bc5 {[%emt 0:00:04]} 14. Qf3 {[%emt 0:00:03]} Bxd4 {[%emt 0:00:30]} 15. O-O-O {[%emt 0:00:03]} Rc8 {[%emt 0:00:11]} 16. Kb1 {[%emt 0:00:03]} Qc6 {[%emt 0:00:03]} 17. Qxc6+ {[%emt 0:00:09]} Rxc6 {[%emt 0:00:03]} 18. Rxd4 {[%emt 0:00:03]} Rc7 {[%emt 0:00:25]} 19. Rhd1 {[%emt 0:00:11]} Ke7 {[%emt 0:00:04]} 20. Kc2 {[%emt 0:00:18]} f5 {[%emt 0:00:03]} 21. a4 {[%emt 0:00:25]} Rg8 {[%emt 0:00:14]} 22. g3 {[%emt 0:00:03]} Kf6 {[%emt 0:00:30]} 23. Rd7 {[%emt 0:00:07]} Rgc8 {[%emt 0:00:03]} 24. Rxc7 {[%emt 0:00:05]} Rxc7 {[%emt 0:00:03]} 25. b4 {[%emt 0:00:06]} f4 {[%emt 0:00:28]} 26. a5 {[%emt 0:00:13]} Kf5 {[%emt 0:00:11]} 27. Kb3 {[%emt 0:00:24]} fxg3 {[%emt 0:00:14]} 28. hxg3 {[%emt 0:00:08]} Ke4 {[%emt 0:00:24]} 29. Rd4+ {[%emt 0:00:48]} Kf3 {[%emt 0:00:25]} 30. Rf4+ {[%emt 0:00:03]} Ke2 {[%emt 0:00:03]} 31. c4 {[%emt 0:00:18]} Rd7 {[%emt 0:00:48]} 32. b5 {[%emt 0:00:10]} Kd3 {[%emt 0:00:43]} 33. c5 {[%emt 0:01:00]} Rd5 {[%emt 0:00:03]} 34. Kb4 {[%emt 0:00:13]} e5 {[%emt 0:00:06]} 35. Rf3+ {[%emt 0:00:06]} Ke4 {[%emt 0:00:03]} 36. Rxf7 {[%emt 0:00:03]} Rd4+ {[%emt 0:00:03]} 37. Kc3 {[%emt 0:00:04]} Rd3+ {[%emt 0:00:03]} 38. Kc2 {[%emt 0:00:03]} Rd5 {[%emt 0:00:03]} 39. Rxb7 {[%emt 0:00:04]} Rxc5+ {[%emt 0:00:03]} 40. Kb3 {[%emt 0:00:03]} Kd3 {[%emt 0:00:03]} 41. b6 {[%emt 0:00:04]} Rxa5 {[%emt 0:00:03]} 42. bxa7 {[%emt 0:00:03]} Ke2 {[%emt 0:00:03]} 43. Rf7 {[%emt 0:00:03]} e4 {[%emt 0:00:03]} 44. g4 {[%emt 0:00:08]} Kf1 {[%emt 0:00:04]} 45. Kc4 {[%emt 0:00:04]} Kg2 {[%emt 0:00:03]} 46. Kd4 {[%emt 0:00:03]} Ra4+ {[%emt 0:00:03]} 47. Ke3 {[%emt 0:00:04]} Kh3 {[%emt 0:00:03]} 48. Kf4 {[%emt 0:00:03]} e3+ {[%emt 0:00:03]} 49. Kxe3 {[%emt 0:00:03]} Kxg4 {[%emt 0:00:03]} 50. Rf4+ {[%emt 0:00:03]} 1-0